[Event "87th Spanish Championship 2022"]
[Site "Linares"]
[Date "2022.08.16"]
[Round "7.1"]
[White "Iturrizaga Bonelli, Eduardo"]
[Black "Narciso Dublan, Marc"]
[Result "1-0"]
[ECO "A40"]
[WhiteElo "2619"]
[BlackElo "2461"]
[Annotator "TA"]
[PlyCount "91"]
[EventDate "2022.08.11"]
[EventType "swiss"]
[EventCountry "ESP"]
[SourceTitle "playchess.com"]
[Source "ChessBase"]
[SourceQuality "1"]
[TimeControl "5400+30"]

{[%evp 9,90,19,31,26,45,58,59,20,31,27,28,27,28,22,23,2,6,3,9,0,0,0,18,16,18,-6,0,0,0,0,0,0,0,0,23,-101,-35,-37,-44,-55,0,0,0,0,-13,-2,38,8,12,9,39,5,147,152,151,131,150,129,137,113,118,118,114,109,115,105,131,96,148,83,238,236,253,255,254,243,1485,1318,29966,29968,29980,29981,29999]} 1. d4 {[%emt 0:02:03]} e6 {[%emt 0:00:20]} 2. Nf3 {[%emt 0:00:09]} f5 {[%emt 0:00:17]} 3. Bf4 {[%emt 0:00:05]} Nf6 {[%emt 0:00:19]} 4. e3 {[%emt 0:00:06]} b6 {[%emt 0:04:07]} 5. Be2 {[%emt 0:01:08]} Bb7 {[%emt 0:00:12]} 6. O-O {[%emt 0:00:20] A80: Dutch Defence: Unusual White second moves.} Nc6 {[%emt 0:00:52]} 7. c4 {[%emt 0:00:21]} Ne7 {[%emt 0:00:14] Prevents d5.} 8. Nc3 {[%emt 0:11:44] White is slightly better.} (8. d5 $5) 8... Ng6 {[%emt 0:00:10] [#]} 9. Bg3 $146 {[%emt 0:02:35] Hoping for Nb5.} (9. Ne5 {looks sharper.} Nxf4 10. exf4 Bb4 11. Bf3) ({Predecessor:} 9. Ne5 Nxf4 10. exf4 Bb4 11. Bh5+ g6 12. Bf3 Bxf3 13. Qxf3 O-O 14. Rad1 Re8 15. d5 Bxc3 16. Qxc3 {½-½ (40) Mikaelyan,A (2495)-Maghsoodloo,P (2572) Yerevan 2018}) 9... Nh5 {[%emt 0:07:44]} 10. Nd2 {[%emt 0:01:35]} Nxg3 {[%emt 0:00:15]} 11. hxg3 {[%emt 0:00:05]} Bb4 {[%emt 0:00:42]} 12. f4 {[%emt 0:03:49]} O-O {[%emt 0:02:36]} 13. Bf3 {[%emt 0:00:38]} Bxf3 {[%emt 0:01:32]} 14. Nxf3 {[%emt 0:00:22]} Bxc3 {[%emt 0:07:40]} 15. bxc3 {[%emt 0:00:45]} c5 {[%emt 0:00:27]} 16. Qd3 {[%emt 0:07:02]} Qc7 {[%emt 0:12:18]} 17. d5 {[%emt 0:17:59]} Qd6 {[%emt 0:11:40]} 18. e4 {[%emt 0:07:52]} fxe4 {[%emt 0:00:33]} 19. Qxe4 {[%emt 0:00:04]} exd5 {[%emt 0:00:38]} 20. Qd3 {[%emt 0:05:10]} Ne7 {[%emt 0:15:51]} 21. Rad1 {[%emt 0:08:08]} Rae8 {[%emt 0:14:52]} 22. cxd5 {[%emt 0:14:49]} (22. Rfe1 $11) 22... Nf5 {[%emt 0:03:25]} (22... c4 $17 23. Qxc4 Nf5) 23. Ne5 $15 {[%emt 0:04:52]} c4 {[%emt 0:00:23]} 24. Qf3 {[%emt 0:02:31]} Qc5+ {[%emt 0:07:17]} (24... b5 $5 {[%cal Rd6c5]}) 25. Rf2 {[%emt 0:00:06]} Re7 {[%emt 0:04:20] [#] White must now prevent ...d6.} 26. d6 $1 $36 {[%emt 0:02:28][%mdl 2048] White has good play.} Nxd6 {[%emt 0:00:06] Threatens to win with ...Rxe5.} 27. Rd5 {[%emt 0:00:04]} Qa3 {[%emt 0:01:43]} 28. Rfd2 {[%emt 0:00:19]} Nf7 {[%emt 0:01:30] And now ...Nxe5 would win.} 29. Nxc4 {[%emt 0:02:14]} Re1+ {[%emt 0:01:34]} 30. Kh2 {[%emt 0:01:06]} (30. Kf2 $5 {[%cal Rc4a3]} Qc1 31. Rd1 Rxd1 32. Rxd1 Qc2+ 33. Rd2 $14) 30... Qc1 {[%emt 0:00:07]} (30... Qa4 $11 {remains equal.} 31. Nd6 Qc6) 31. Rd1 $16 {[%emt 0:00:14]} Rxd1 {[%emt 0:00:12]} 32. Rxd1 {[%emt 0:00:03]} Qc2 {[%emt 0:00:07]} 33. Rxd7 {[%emt 0:00:57]} Qxa2 {[%emt 0:00:34]} 34. Qd5 {[%emt 0:00:24]} Qb3 {[%emt 0:02:04]} 35. Rxa7 {[%emt 0:01:44]} b5 {[%emt 0:00:07]} 36. Nb6 {[%emt 0:00:07] 0x0.00198ba7208adp-1022s more active pieces.} Qxd5 {[%emt 0:00:14]} 37. Nxd5 {[%emt 0:00:03][%mdl 4096] Endgame KRN-KRN} Nd6 {[%emt 0:01:04]} 38. Rd7 {[%emt 0:01:31]} Nc4 {[%emt 0:00:46]} (38... Ne4 $142) 39. Rb7 {[%emt 0:00:04]} (39. g4 $142) 39... Na3 $2 {[%emt 0:00:11] Loses the game.} (39... Nd6 $16 40. Rb6 Rd8) 40. Ne7+ $18 {[%emt 0:02:15]} Kh8 {[%emt 0:00:07]} 41. g4 {[%emt 0:00:44]} g6 {[%emt 0:01:00]} 42. Nd5 {[%emt 0:00:33] [#] g5 is the strong threat.} h6 {[%emt 0:00:38]} (42... Kg8 43. g5 Rf7) 43. g5 {[%emt 0:00:31]} hxg5 {[%emt 0:00:35]} 44. fxg5 {[%emt 0:00:04] White mates.} Rf5 {[%emt 0:00:34]} 45. Nf6 {[%emt 0:00:04][%csl Gf6][%cal Rb7h7]} Rxg5 {[%emt 0:00:04]} 46. Rh7# {[%emt 0:00:03] Weighted Error Value: White=0.14 (very precise) /Black=0.37} 1-0

[Event "87th Spanish Championship 2022"]
[Site "Linares"]
[Date "2022.08.16"]
[Round "7.2"]
[White "Yuffa, Daniil"]
[Black "Garriga Cazorla, Pere"]
[Result "1-0"]
[ECO "D37"]
[WhiteElo "2603"]
[BlackElo "2505"]
[Annotator "TA"]
[PlyCount "101"]
[EventDate "2022.08.11"]
[EventType "swiss"]
[EventCountry "ESP"]
[SourceTitle "playchess.com"]
[Source "ChessBase"]
[SourceQuality "1"]
[TimeControl "5400+30"]

{[%evp 9,101,22,32,10,37,16,14,12,14,9,26,16,19,15,45,0,0,0,0,0,20,18,15,18,23,14,32,29,26,18,16,0,16,0,0,0,0,0,24,-31,0,0,0,-13,0,0,0,0,0,0,0,-18,0,-18,0,-20,0,-39,0,-28,0,-18,-18,-18,-18,-25,-24,-50,-47,-60,-36,-43,-36,-121,-110,-162,-39,-42,-29,-52,-48,-50,-21,-196,-204,-187,-117,-110,-74,-151,-141,-153,686,676]} 1. d4 {[%emt 0:00:28]} Nf6 {[%emt 0:00:08]} 2. c4 {[%emt 0:00:07]} e6 {[%emt 0:00:05]} 3. Nf3 {[%emt 0:00:11]} d5 {[%emt 0:00:14]} 4. Nc3 {[%emt 0:00:45]} a6 {[%emt 0:01:15]} 5. cxd5 {[%emt 0:00:11]} exd5 {[%emt 0:00:06]} 6. Qb3 {[%emt 0:00:05][%cal Oe2e4] D37: Queen's Gambit Declined: 5 Bf4.} Be7 {[%emt 0:04:36]} 7. Bf4 {[%emt 0:01:57]} c6 {[%emt 0:02:29]} 8. e3 {[%emt 0:00:37] The position is equal.} Nbd7 {[%emt 0:02:51][%cal Bb8d7,Bd7f8,Bf8e6][%mdl 32]} 9. h3 {[%emt 0:02:13]} O-O {[%emt 0:01:49]} 10. Bd3 {[%emt 0:08:41] [#]} Re8 $146 {[%emt 0:04:41]} ({Predecessor:} 10... b5 11. Ne5 Bb7 12. Qc2 h6 13. O-O Nxe5 14. dxe5 Nd7 15. Bf5 Nc5 16. b4 Ne6 {0-1 (48) Uhoda,P (2125)-Denayer,E (2258) Namur 2009}) 11. O-O {[%emt 0:00:22]} Nf8 {[%emt 0:10:30]} 12. Na4 {[%emt 0:05:13] Black must now prevent Nb6.} Ne6 {[%emt 0:00:25]} 13. Be5 {[%emt 0:03:40] Nb6 is the strong threat.} Nd7 {[%emt 0:08:54] Against Nb6} 14. Bh2 {[%emt 0:07:16]} a5 {[%emt 0:10:42]} 15. Rac1 {[%emt 0:07:43]} g6 {[%emt 0:06:02]} 16. Rfe1 {[%emt 0:05:35]} Bb4 {[%emt 0:09:13]} 17. Re2 {[%emt 0:01:04]} Ng5 {[%emt 0:00:13]} 18. Nxg5 {[%emt 0:06:28]} Qxg5 {[%emt 0:00:12]} 19. a3 {[%emt 0:00:35]} Bf8 {[%emt 0:00:58]} 20. Rce1 {[%emt 0:03:07]} Qf6 {[%emt 0:02:25]} 21. Bb1 {[%emt 0:05:34]} b5 {[%emt 0:04:02]} 22. Nc3 {[%emt 0:00:32]} Nb6 {[%emt 0:00:07]} 23. Bd3 {[%emt 0:12:04]} Bd7 {[%emt 0:04:34]} 24. Qd1 {[%emt 0:03:01]} (24. Bc7 $11 Nc4 25. Bxc4 dxc4 26. Qc2) 24... Rac8 {[%emt 0:01:32]} (24... b4 $5 {[%cal Rb4c3]} 25. Na4 Nxa4 26. Qxa4 Qd8 $11) 25. Rc2 {[%emt 0:03:08]} a4 {[%emt 0:02:48]} 26. Rd2 {[%emt 0:01:28]} Qg5 {[%emt 0:02:06]} 27. Bf4 {[%emt 0:01:03]} Qf6 {[%emt 0:00:05]} 28. Bg3 {[%emt 0:01:11]} Bh6 {[%emt 0:00:58]} 29. Rde2 {[%emt 0:03:44]} Bg7 {[%emt 0:00:56]} 30. Rc2 {[%emt 0:01:14]} h5 {[%emt 0:00:27]} 31. Bf4 {[%emt 0:01:34]} Bf8 {[%emt 0:00:36]} 32. Rd2 {[%emt 0:01:10]} Bg7 {[%emt 0:00:38]} 33. Ne2 {[%emt 0:00:33]} Bf8 {[%emt 0:01:28]} 34. Nc3 {[%emt 0:02:31]} Bg7 {[%emt 0:00:06]} 35. Na2 {[%emt 0:00:41]} Bf5 {[%emt 0:02:01]} 36. Be5 {[%emt 0:00:25]} Qe6 {[%emt 0:00:43]} 37. Bxg7 {[%emt 0:00:35] Hoping for Bxf5.} Bxd3 {[%emt 0:01:58]} 38. Be5 {[%emt 0:01:53]} Bf5 {[%emt 0:01:20]} 39. Bh2 {[%emt 0:00:55]} Nc4 {[%emt 0:00:43]} 40. Rde2 {[%emt 0:00:03]} g5 $36 {[%emt 0:00:50][%mdl 2048] Black has good play.} 41. Nc3 {[%emt 0:01:12]} (41. Nb4 $15) 41... Qg6 $1 $17 {[%emt 0:00:16]} 42. b3 {[%emt 0:01:39]} (42. e4 $17 dxe4 43. Qc1) 42... Nxa3 {[%emt 0:02:29]} (42... axb3 $19 {And now ...Bc2 would win.} 43. e4 dxe4 44. Qxb3 g4 45. hxg4 hxg4) 43. bxa4 {[%emt 0:03:17]} b4 {[%emt 0:00:32]} (43... g4 $5 {[%cal Rg4h3]} 44. h4 b4 $15) 44. Qb3 {[%emt 0:01:22]} bxc3 {[%emt 0:04:16]} 45. Qxa3 {[%emt 0:00:02]} Bd3 {[%emt 0:00:11]} 46. Qxc3 $2 {[%emt 0:01:58]} Bxe2 $19 {[%emt 0:00:07]} 47. Rxe2 {[%emt 0:00:02] [#]} Ra8 {[%emt 0:00:54]} (47... c5 $1 $19 {[%cal Rc5d4] Threatens to win with ...cxd4.} 48. Re1 c4) 48. a5 $17 {[%emt 0:00:19]} Re7 {[%emt 0:00:15] Strongly threatening ...Rea7.} 49. Rb2 {[%emt 0:01:46] [#]} (49. Rc2 $142) 49... Rea7 $1 {[%emt 0:00:04]} 50. Be5 {[%emt 0:00:14]} ({Wrong is} 50. Rb8+ $2 Rxb8 51. Bxb8 Qb1+ 52. Kh2 Qxb8+ $19) 50... Rxa5 $2 {[%emt 0:00:36] [#]} (50... Kh7 $17 51. Rb6 Rxa5 52. Qxc6 Qxc6 53. Rxc6 R8a6) 51. Qxa5 $3 {[%emt 0:00:13][%mdl 512] White used his chance.  Weighted Error Value: White=0.20 (precise) /Black=0.23 (precise)} 1-0

[Event "87th Spanish Championship 2022"]
[Site "Linares"]
[Date "2022.08.16"]
[Round "7.3"]
[White "Gines Esteo, Pedro Antonio"]
[Black "Perez Candelario, Manuel"]
[Result "1-0"]
[ECO "D35"]
[WhiteElo "2455"]
[BlackElo "2578"]
[Annotator "TA"]
[PlyCount "71"]
[EventDate "2022.08.11"]
[EventType "swiss"]
[EventCountry "ESP"]
[SourceTitle "playchess.com"]
[Source "ChessBase"]
[SourceQuality "1"]
[TimeControl "5400+30"]

{[%evp 14,71,22,18,18,15,40,35,42,0,6,0,0,0,0,5,4,0,0,0,1,0,6,7,13,4,0,0,0,-2,-10,-4,-1,0,0,0,16,8,452,455,476,477,462,476,479,478,471,454,447,439,429,420,637,645,866,773,782,760,1077,959]} 1. d4 {[%emt 0:00:15]} d5 {[%emt 0:00:05]} 2. c4 {[%emt 0:00:15]} e6 {[%emt 0:00:03]} 3. Nc3 {[%emt 0:00:13]} Nf6 {[%emt 0:00:04]} 4. cxd5 {[%emt 0:00:24]} exd5 {[%emt 0:00:04]} 5. Bg5 {[%emt 0:00:15]} Be7 {[%emt 0:00:04]} 6. e3 {[%emt 0:00:41]} c6 {[%emt 0:00:06]} 7. Qc2 {[%emt 0:03:52]} Nbd7 {[%emt 0:00:36][%cal Bb8d7,Bd7f8,Bf8e6][%mdl 32]} 8. Nf3 {[%emt 0:02:50]} Nf8 {[%emt 0:03:39] Recently 8...Nh5 got a lot of attention. D36: Queen's Gambit Declined: Exchange Variation: Main line (5 Bg5 c6 6 Qc2).} 9. h3 {[%emt 0:18:47]} Ne6 {[%emt 0:01:15]} 10. Bh4 {[%emt 0:00:10]} O-O {[%emt 0:01:52] White is slightly better.} 11. Be2 {[%emt 0:07:13]} g6 {[%emt 0:04:05]} 12. O-O {[%emt 0:01:58]} Ng7 {[%emt 0:03:27] [#]} 13. Bxf6 $146 {[%emt 0:03:39]} ({Predecessor:} 13. Rac1 Nfh5 14. Bxe7 Qxe7 15. Ne5 f5 16. g3 Be6 17. Kh2 Qg5 18. h4 Qe7 19. f4 {½-½ (51) Ionescu,V (2115)-Marin,I (2261) Bucharest 1991}) 13... Bxf6 {[%emt 0:00:04]} 14. b4 {[%emt 0:00:04]} Bf5 {[%emt 0:09:17]} 15. Qb3 {[%emt 0:00:43]} a6 {[%emt 0:04:33]} 16. Na4 {[%emt 0:10:47]} Qe7 {[%emt 0:13:38]} 17. Nc5 {[%emt 0:01:00]} h5 {[%emt 0:00:30]} 18. a4 {[%emt 0:05:04]} g5 {[%emt 0:06:46]} 19. Ne5 {[%emt 0:03:23] Inhibits g4.} Bxe5 {[%emt 0:04:31]} 20. dxe5 {[%emt 0:00:04]} g4 {[%emt 0:03:15]} 21. hxg4 {[%emt 0:01:37]} hxg4 {[%emt 0:00:03]} 22. e4 {[%emt 0:16:15]} dxe4 {[%emt 0:03:17] White should prevent ...b6.} ({Don't take} 22... Qxe5 23. exf5 Qxe2 24. Nd7 $16) 23. Qg3 {[%emt 0:00:08]} Nh5 {[%emt 0:17:05]} 24. Qe3 {[%emt 0:00:01]} Rfe8 {[%emt 0:05:17]} (24... Qxe5 $2 25. Qg5+ Ng7 26. Nd7 (26. Bxg4 $2 f6 $19) 26... Qxa1 27. Rxa1 Bxd7 28. Qe7 $18 (28. Bxg4 f6 $18)) 25. Qh6 {[%emt 0:06:51]} Bg6 {[%emt 0:05:03][%mdl 8192] This costs Black the game.} (25... Ng7 $1 $11 {and Black has nothing to worry.}) 26. Bc4 $18 {[%emt 0:01:30]} Nf4 {[%emt 0:03:32]} 27. Qxf4 {[%emt 0:00:16]} Qxe5 {[%emt 0:00:03]} 28. Qxe5 {[%emt 0:03:30]} ({Don't play} 28. Qxg4 Kg7 29. Rad1 b5 $18) 28... Rxe5 {[%emt 0:00:04]} 29. Nxb7 {[%emt 0:00:10]} Kg7 {[%emt 0:00:07]} 30. Rad1 {[%emt 0:04:30]} Rh8 {[%emt 0:00:46]} 31. Rd8 {[%emt 0:00:06] [#] Rxh8 is the strong threat.} Rh4 {[%emt 0:00:53] ( -> ...Reh5)} 32. Re1 {[%emt 0:02:00]} f5 {[%emt 0:07:35]} (32... Reh5 $142 33. Kf1 Rg5) 33. Nc5 {[%emt 0:01:01] White is clearly winning.} a5 {[%emt 0:04:26]} 34. Ne6+ {[%emt 0:02:02]} Kf6 {[%emt 0:00:09]} 35. Nf4 {[%emt 0:00:06] [#] Strongly threatening Rd6+.} Bh7 {[%emt 0:00:56]} 36. Rd6+ {[%emt 0:01:18] Weighted Error Value: White=0.04 (flawless) /Black=0.46} 1-0

[Event "87th Spanish Championship 2022"]
[Site "Linares"]
[Date "2022.08.16"]
[Round "7.4"]
[White "Garcia Ramos, Daniel"]
[Black "Santos Latasa, Jaime"]
[Result "1/2-1/2"]
[ECO "B54"]
[WhiteElo "2438"]
[BlackElo "2675"]
[Annotator "TA"]
[PlyCount "60"]
[EventDate "2022.08.11"]
[EventType "swiss"]
[EventCountry "ESP"]
[SourceTitle "playchess.com"]
[Source "ChessBase"]
[SourceQuality "1"]
[TimeControl "5400+30"]

{[%evp 11,60,13,17,20,28,14,20,7,0,8,0,0,0,0,0,3,20,0,0,8,109,82,82,52,40,54,52,13,31,51,44,0,0,0,0,0,0,0,0,0,0,0,0,0,0,0,0,0,0,0,0]} 1. e4 {[%emt 0:00:02]} c5 {[%emt 0:00:07]} 2. Nf3 {[%emt 0:00:09]} d6 {[%emt 0:00:12]} 3. d4 {[%emt 0:00:06]} cxd4 {[%emt 0:00:04]} 4. Nxd4 {[%emt 0:00:04]} Nf6 {[%emt 0:00:06]} 5. f3 {[%emt 0:00:05]} e5 {[%emt 0:00:18]} 6. Nb3 {[%emt 0:00:05]} d5 {[%emt 0:00:59]} 7. Bg5 {[%emt 0:00:15] B55: Sicilian: 2...d6 3 d4 cxd4 4 Nxd4 Nf6 5 f3.} d4 {[%emt 0:00:17]} 8. c3 {[%emt 0:00:09][%cal Bc2c3,Bc3d4][%mdl 32]} Nc6 {[%emt 0:00:23]} 9. cxd4 $1 {[%emt 0:00:16][%mdl 4] now scores much better than the old 9.Bb5.} Bb4+ $1 {[%emt 0:01:35]} ({But not} 9... Nxd4 10. Nc3 $16) 10. Bd2 {[%emt 0:00:06][%cal Bg5d2,Bd2b4,Bb4c5,Bc5a3][%mdl 32]} Nxe4 {[%emt 0:01:11]} 11. Bxb4 {[%emt 0:00:08]} Qh4+ {[%emt 0:00:08]} 12. g3 {[%emt 0:00:05]} Nxg3 {[%emt 0:00:07]} 13. hxg3 {[%emt 0:00:05]} Qxh1 {[%emt 0:00:09]} 14. Bc5 {[%emt 0:00:08]} Bh3 {[%emt 0:01:07]} 15. N1d2 {[%emt 0:00:11] [#]} b6 $146 {[%emt 0:12:40]} (15... O-O-O $11 16. Qc2 Bxf1) ({Predecessor:} 15... O-O-O 16. Qc2 Bxf1 17. O-O-O Qh6 18. Rxf1 b6 19. Ba3 exd4 20. Qf5+ Qe6 21. Qxe6+ fxe6 {1-0 (41) Bick,G (2375)-Bakhmatsky,V (2442) Vienna 2019}) 16. Ba3 $16 {[%emt 0:01:31]} Qg1 {[%emt 0:01:40]} 17. Qe2 {[%emt 0:17:32]} Qxg3+ {[%emt 0:01:31]} 18. Kd1 {[%emt 0:03:31]} Bxf1 {[%emt 0:01:39]} 19. Qxf1 {[%emt 0:00:43]} O-O-O $1 {[%emt 0:02:28] aiming for ...Kb7.} 20. Rc1 {[%emt 0:24:13]} Kb7 {[%emt 0:00:22] [#]} 21. Rxc6 {[%emt 0:10:51] The board is on fire.} Kxc6 {[%emt 0:00:09] The position is equal.} 22. Na5+ {[%emt 0:00:05]} bxa5 {[%emt 0:02:36]} 23. Qa6+ {[%emt 0:09:04]} Kc7 {[%emt 0:00:08]} 24. Qxa7+ {[%emt 0:00:08]} Kc8 {[%emt 0:00:05] [#] Threatens to win with ...Qg1+.} 25. Qa8+ {[%emt 0:06:34]} Kc7 {[%emt 0:00:12]} 26. Qxa5+ {[%emt 0:00:24]} Kb7 {[%emt 0:00:38] White must now prevent ...Qg1+.} 27. Qb5+ {[%emt 0:01:14]} Kc7 {[%emt 0:00:15] ...Qg1+ is the strong threat.} 28. Qc5+ {[%emt 0:02:27]} Kb7 {[%emt 0:00:12] Hoping for ...Qg1+.} 29. Qb5+ {[%emt 0:00:06]} Kc7 {[%emt 0:00:04] Strongly threatening ...Qg1+.} 30. Qc5+ {[%emt 0:00:03]} Kb7 {[%emt 0:00:05] Weighted Error Value: White=0.07 (flawless) /Black=0.07 (flawless)} 1/2-1/2

[Event "87th Spanish Championship 2022"]
[Site "Linares"]
[Date "2022.08.16"]
[Round "7.5"]
[White "Alonso Garcia, Aaron"]
[Black "Moreno Ruiz, Javier"]
[Result "0-1"]
[ECO "B35"]
[WhiteElo "2374"]
[BlackElo "2428"]
[Annotator "TA"]
[PlyCount "104"]
[EventDate "2022.08.11"]
[EventType "swiss"]
[EventCountry "ESP"]
[SourceTitle "playchess.com"]
[Source "ChessBase"]
[SourceQuality "1"]
[TimeControl "5400+30"]

{[%evp 14,104,22,20,46,2,17,25,61,73,57,51,48,46,44,45,35,45,42,-26,-4,-9,0,-51,-58,-149,-141,-154,-154,-144,-141,-122,-129,-136,-149,-148,-139,-147,-152,-148,-135,-149,-141,-151,-135,-219,-216,-262,-262,-273,-275,-262,-259,-249,-246,-295,-295,-354,-347,-721,-735,-1053,-972,-2485,-3401,-2135,-1869,-12842,-12841,-12843,-12843,-29984,-29985,-29987,-29988,-29987,-29986,-29986,-29987,-29987,-29988,-29988,-29989,-29990,-29991,-29991,-29992,-29992,-29993,-29995,-29996,-29996,-29997]} 1. e4 {[%emt 0:06:32]} c5 {[%emt 0:00:24]} 2. Nf3 {[%emt 0:00:05]} Nc6 {[%emt 0:00:10]} 3. d4 {[%emt 0:00:03]} cxd4 {[%emt 0:00:11]} 4. Nxd4 {[%emt 0:00:02]} g6 {[%emt 0:00:18]} 5. Nc3 {[%emt 0:00:05]} Bg7 {[%emt 0:00:17]} 6. Be3 {[%emt 0:00:02]} Nf6 {[%emt 0:00:16]} 7. Bc4 {[%emt 0:00:03]} O-O {[%emt 0:00:28]} 8. Bb3 {[%emt 0:00:47]} Re8 {[%emt 0:00:38] B35: Sicilian: Accelerated Dragon with 5 Nc3: main line.} 9. f3 {[%emt 0:00:11]} e6 {[%emt 0:00:33]} 10. f4 {[%emt 0:00:02]} Nd5 {[%emt 0:01:26] White has an edge.} 11. exd5 {[%emt 0:26:07]} exd5 {[%emt 0:00:22] White must now prevent ...Bxd4.} 12. Kf2 {[%emt 0:06:45]} Rxe3 $1 {[%emt 0:01:19]} 13. Kxe3 {[%emt 0:05:51] [#] Hoping for Nce2.} Bxd4+ $146 {[%emt 0:00:32]} ({Predecessor:} 13... Nxd4 14. Nxd5 Nf5+ 15. Kd2 Bxb2 16. Re1 d6 17. c3 Be6 18. Rb1 Ba3 19. g4 Nd4 20. cxd4 Bxd5 21. Bxd5 {½-½ (34) Azarov,S (2574)-Dragun,K (2594) Rockville 2018}) 14. Kd2 {[%emt 0:02:23]} Bxc3+ {[%emt 0:01:31]} (14... Qa5 $2 15. Qf3 $16) 15. bxc3 {[%emt 0:00:15]} d4 {[%emt 0:00:07]} 16. Qf3 {[%emt 0:07:34]} (16. cxd4 $14 d5 17. Ke3) 16... dxc3+ {[%emt 0:05:50]} 17. Qxc3 {[%emt 0:00:02]} d5 {[%emt 0:00:20]} 18. Rae1 {[%emt 0:05:47]} (18. Rhe1 $11) 18... Bf5 {[%emt 0:02:28][%cal Bc8f5,Bf5c2,Bc2d3,Bd3c4,Bc4e6][%mdl 1056] Black has compensation.} 19. Kc1 {[%emt 0:01:45] White is now going downhill.} ({Better is} 19. Re2 $15) 19... a5 $17 {[%emt 0:10:52] And now ...a4 would win.} 20. a4 {[%emt 0:02:00]} Rc8 {[%emt 0:04:49]} 21. Re2 {[%emt 0:00:01]} Nb4 {[%emt 0:17:49]} 22. Qd4 {[%emt 0:01:09]} Qc7 {[%emt 0:00:26][%cal Rf5c2]} 23. Kb2 {[%emt 0:04:39]} Bxc2 {[%emt 0:03:06] Dancing on a razor blade.} (23... Nxc2 $2 24. Bxc2 Bxc2 25. Rc1 $18) 24. Rc1 {[%emt 0:00:17][%cal Re2c2]} Nd3+ {[%emt 0:00:20]} 25. Qxd3 {[%emt 0:00:03]} Bxd3 {[%emt 0:00:09][%mdl 64] Discovered Attack} 26. Rxc7 {[%emt 0:00:03]} Rxc7 {[%emt 0:00:11][%mdl 4096] Endgame KRB-KRB} 27. Re8+ {[%emt 0:00:01]} Kg7 {[%emt 0:00:14]} 28. Bxd5 {[%emt 0:00:01]} Bc4 {[%emt 0:02:25]} 29. Bf3 {[%emt 0:00:37] [#]} (29. Be4 $17) 29... Be6 $1 $19 {[%emt 0:01:20]} 30. Ra8 {[%emt 0:02:30] [#]} b6 {[%emt 0:01:36]} 31. Rb8 {[%emt 0:00:01]} Rc4 {[%emt 0:00:56][%csl LRa4,LRf4]} 32. Rxb6 {[%emt 0:00:01]} Rxa4 {[%emt 0:00:26]} ({Not} 32... Rxf4 33. Bc6 $17) 33. Ra6 {[%emt 0:00:22]} h5 {[%emt 0:01:55]} ({Worse is} 33... Rxf4 34. Rxa5 Rc4 35. h3 $17) 34. Kc3 {[%emt 0:01:39]} h4 {[%emt 0:02:09]} (34... Rxf4 35. Rxa5 h4 36. Kd2 $17) 35. Kd2 {[%emt 0:05:14]} Ra2+ {[%emt 0:04:24]} ({Inferior is} 35... Rxf4 36. Rxa5 h3 37. Ke3 hxg2 38. Bxg2 $17) 36. Ke3 $2 {[%emt 0:00:01]} (36. Kd1) 36... a4 {[%emt 0:00:49][%cal Ba5a4,Ba4a3,Ba3a2][%mdl 32]} 37. Ra5 {[%emt 0:02:24]} a3 {[%emt 0:01:17]} 38. Bd5 {[%emt 0:02:38]} Bxd5 {[%emt 0:00:39]} 39. Rxd5 {[%emt 0:00:01]} Rxg2 {[%emt 0:00:21] KR-KR} 40. Ra5 {[%emt 0:00:01]} Rxh2 {[%emt 0:00:27]} 41. Kf3 {[%emt 0:00:02]} f5 {[%emt 0:01:27] ( -> ...a2)} 42. Ra6 {[%emt 0:00:24]} a2 {[%emt 0:00:25] Black mates.} 43. Ra5 {[%emt 0:00:09]} Rb2 {[%emt 0:00:29]} 44. Ra7+ {[%emt 0:00:14]} Kf6 {[%emt 0:01:16]} 45. Ra6+ {[%emt 0:00:05]} Ke7 {[%emt 0:01:19]} 46. Ra7+ {[%emt 0:00:02]} Kd6 {[%emt 0:00:19]} 47. Ra6+ {[%emt 0:00:03]} Kc7 {[%emt 0:00:09]} 48. Ra7+ {[%emt 0:00:04]} Kb8 {[%emt 0:00:32]} 49. Ra6 {[%emt 0:00:25]} h3 {[%emt 0:00:53]} 50. Kg3 {[%emt 0:00:03]} h2 {[%emt 0:00:13]} 51. Ra5 {[%emt 0:00:07]} h1=Q {[%emt 0:03:20]} 52. Ra8+ {[%emt 0:00:07]} Qxa8 {[%emt 0:00:07] Weighted Error Value: White=0.74/Black=0.02 (flawless)} 0-1